[Event "*** Titled Tuesday Blitz"]
[Site "Chess.com"]
[Date "2018.01.02"]
[Round "2"]
[White "Th3ChessViking"]
[Black "ChristopherYoo"]
[Result "0-1"]
[WhiteElo "2410"]
[BlackElo "2285"]
[TimeControl "180+2"]
[EndTime "13:25:04 PST"]
[Termination "ChristopherYoo won by resignation"]

1. d4 {[%clk 0:03:01.9]} 1... Nf6 {[%clk 0:03:00.4]} 2. Nf3 {[%clk 0:02:59.8]}
2... g6 {[%clk 0:03:00.8]} 3. Bf4 {[%clk 0:02:58.2]} 3... Bg7 {[%clk 0:03:00.9]}
4. e3 {[%clk 0:02:56.8]} 4... d5 {[%clk 0:03:00.6]} 5. h3 {[%clk 0:02:50.4]}
5... a6 {[%clk 0:02:59.9]} 6. Bd3 {[%clk 0:02:50.1]} 6... O-O {[%clk 0:02:57.5]}
7. O-O {[%clk 0:02:50]} 7... c5 {[%clk 0:02:30.2]} 8. c3 {[%clk 0:02:46.8]} 8...
Nbd7 {[%clk 0:02:26.8]} 9. Nbd2 {[%clk 0:02:45.5]} 9... b5 {[%clk 0:02:08.7]}
10. Bh2 {[%clk 0:02:44.6]} 10... Bb7 {[%clk 0:02:07.7]} 11. Ne5 {[%clk
0:02:41.2]} 11... Rc8 {[%clk 0:02:04.3]} 12. f4 {[%clk 0:02:41.3]} 12... Ne4
{[%clk 0:01:43.3]} 13. Ndf3 {[%clk 0:02:24.2]} 13... e6 {[%clk 0:01:19.4]} 14.
Nxd7 {[%clk 0:02:13.9]} 14... Qxd7 {[%clk 0:01:19.8]} 15. Ne5 {[%clk 0:02:15.5]}
15... Qd8 {[%clk 0:01:20.8]} 16. Bxe4 {[%clk 0:02:10.9]} 16... dxe4 {[%clk
0:01:21.2]} 17. dxc5 {[%clk 0:02:12.3]} 17... Rxc5 {[%clk 0:01:12.7]} 18. Qxd8
{[%clk 0:02:07.8]} 18... Rxd8 {[%clk 0:01:12.6]} 19. Rfd1 {[%clk 0:02:09]} 19...
Rcd5 {[%clk 0:01:13]} 20. Rd4 {[%clk 0:02:07.9]} 20... f6 {[%clk 0:01:06.3]} 21.
Ng4 {[%clk 0:02:06.1]} 21... h5 {[%clk 0:01:06.6]} 22. Nf2 {[%clk 0:02:06.4]}
22... f5 {[%clk 0:01:04.1]} 23. Rxd5 {[%clk 0:02:04.1]} 23... Rxd5 {[%clk
0:01:00.4]} 24. Rd1 {[%clk 0:02:04.7]} 24... a5 {[%clk 0:00:56.8]} 25. Kf1
{[%clk 0:02:01.9]} 25... b4 {[%clk 0:00:56.4]} 26. Rxd5 {[%clk 0:01:20.2]} 26...
Bxd5 {[%clk 0:00:50.6]} 27. cxb4 {[%clk 0:01:22.1]} 27... Bxb2 {[%clk 0:00:41]}
28. a3 {[%clk 0:01:23.9]} 28... axb4 {[%clk 0:00:40.3]} 29. axb4 {[%clk
0:01:24.2]} 29... Bc3 {[%clk 0:00:40]} 30. g4 {[%clk 0:01:21.1]} 30... Bxb4
{[%clk 0:00:32.6]} 31. gxh5 {[%clk 0:01:21.2]} 31... gxh5 {[%clk 0:00:33.2]} 32.
Nh1 {[%clk 0:01:22.3]} 32... Bc4+ {[%clk 0:00:33.1]} 33. Kg2 {[%clk 0:01:22.2]}
33... Be2 {[%clk 0:00:31.7]} 34. Ng3 {[%clk 0:00:54.1]} 34... Bf3+ {[%clk
0:00:31.4]} 35. Kf2 {[%clk 0:00:54.6]} 35... h4 {[%clk 0:00:31.7]} 36. Nf1
{[%clk 0:00:54.2]} 36... Kf7 {[%clk 0:00:31.7]} 37. Bg1 {[%clk 0:00:56.1]} 37...
Ke8 {[%clk 0:00:31.5]} 38. Nh2 {[%clk 0:00:57.9]} 38... Bh5 {[%clk 0:00:30.8]}
39. Kg2 {[%clk 0:00:59.1]} 39... Be1 {[%clk 0:00:31.1]} 40. Bf2 {[%clk
0:00:58.4]} 40... Bxf2 {[%clk 0:00:22.2]} 41. Kxf2 {[%clk 0:01:00]} 41... Kd7
{[%clk 0:00:22.5]} 42. Nf1 {[%clk 0:01:01.9]} 42... Kc6 {[%clk 0:00:23.1]} 43.
Nd2 {[%clk 0:01:03.8]} 43... Kc5 {[%clk 0:00:23.5]} 44. Nb3+ {[%clk 0:01:04.9]}
44... Kd5 {[%clk 0:00:19.4]} 45. Nd4 {[%clk 0:01:06.8]} 45... Bg6 {[%clk
0:00:19.9]} 46. Nb5 {[%clk 0:01:07]} 46... e5 {[%clk 0:00:20.2]} 47. Nc7+ {[%clk
0:01:03.3]} 47... Kd6 {[%clk 0:00:20.9]} 48. Nb5+ {[%clk 0:01:03.9]} 48... Kc5
{[%clk 0:00:21.4]} 49. Nc7 {[%clk 0:01:04.3]} 49... Kc6 {[%clk 0:00:18.8]} 50.
Ne6 {[%clk 0:01:04.3]} 50... Kd6 {[%clk 0:00:19.8]} 51. Ng5 {[%clk 0:01:02.3]}
51... exf4 {[%clk 0:00:16.9]} 52. exf4 {[%clk 0:01:04.2]} 52... Kd5 {[%clk
0:00:17.6]} 53. Ke3 {[%clk 0:01:05.9]} 53... Be8 {[%clk 0:00:17]} 54. Nh7 {[%clk
0:01:05.5]} 54... Bb5 {[%clk 0:00:17.9]} 55. Nf6+ {[%clk 0:01:04.7]} 55... Ke6
{[%clk 0:00:18.8]} 56. Nh7 {[%clk 0:01:04.5]} 56... Bf1 {[%clk 0:00:17.9]} 57.
Ng5+ {[%clk 0:01:04.9]} 57... Kf6 {[%clk 0:00:18.8]} 58. Kd4 {[%clk 0:01:06.8]}
58... Bg2 {[%clk 0:00:15.2]} 59. Ke3 {[%clk 0:01:06.1]} 59... Bf1 {[%clk
0:00:16]} 60. Kf2 {[%clk 0:01:07]} 60... Bc4 {[%clk 0:00:16]} 61. Ke3 {[%clk
0:01:08.9]} 61... Bg8 {[%clk 0:00:16.4]} 62. Kd4 {[%clk 0:01:10]} 62... Bf7
{[%clk 0:00:16.2]} 63. Nh7+ {[%clk 0:01:10.7]} 63... Ke7 {[%clk 0:00:15.6]} 64.
Ng5 {[%clk 0:01:12.6]} 64... Bh5 {[%clk 0:00:15.7]} 65. Ke3 {[%clk 0:01:10.5]}
65... Bg6 {[%clk 0:00:16.2]} 66. Kd4 {[%clk 0:01:10.9]} 66... Kd6 {[%clk
0:00:17.2]} 67. Kc4 {[%clk 0:01:07.3]} 67... Ke7 {[%clk 0:00:13.6]} 68. Kd4
{[%clk 0:01:07.8]} 68... Kf6 {[%clk 0:00:14.3]} 69. Kc4 {[%clk 0:01:06.9]} 69...
Ke7 {[%clk 0:00:14.9]} 70. Kd4 {[%clk 0:01:07.2]} 70... Kd7 {[%clk 0:00:15.7]}
71. Kc4 {[%clk 0:01:06]} 71... Kc6 {[%clk 0:00:15.4]} 72. Ne6 {[%clk 0:01:01.7]}
72... Bf7 {[%clk 0:00:16]} 73. Kd4 {[%clk 0:01:00.5]} 73... Bxe6 {[%clk
0:00:17.5]} 0-1

[Event "*** Titled Tuesday Blitz"]
[Site "Chess.com"]
[Date "2018.01.02"]
[Round "2"]
[White "Robert_Chessmood"]
[Black "Korchmar_Vasiliy"]
[Result "1/2-1/2"]
[WhiteElo "2728"]
[BlackElo "2516"]
[TimeControl "180+2"]
[EndTime "13:29:14 PST"]
[Termination "Game drawn by 50-move rule"]

1. e4 {[%clk 0:03:01.9]} 1... e5 {[%clk 0:03:00.7]} 2. Nf3 {[%clk 0:03:02.3]}
2... Nc6 {[%clk 0:03:02]} 3. Nc3 {[%clk 0:03:03.4]} 3... Nf6 {[%clk 0:03:02.8]}
4. d4 {[%clk 0:03:04.7]} 4... exd4 {[%clk 0:03:03.8]} 5. Nxd4 {[%clk 0:03:06.6]}
5... Bb4 {[%clk 0:03:05]} 6. Nxc6 {[%clk 0:03:07.5]} 6... bxc6 {[%clk
0:03:06.9]} 7. Bd3 {[%clk 0:03:09]} 7... d5 {[%clk 0:03:08.2]} 8. exd5 {[%clk
0:03:10.1]} 8... O-O {[%clk 0:03:09.6]} 9. O-O {[%clk 0:03:11]} 9... cxd5 {[%clk
0:03:11]} 10. h3 {[%clk 0:03:12.2]} 10... c6 {[%clk 0:03:08.2]} 11. Qf3 {[%clk
0:03:13]} 11... Bd6 {[%clk 0:03:06.9]} 12. Re1 {[%clk 0:03:12.2]} 12... Rb8
{[%clk 0:03:04.7]} 13. b3 {[%clk 0:03:12.5]} 13... Be6 {[%clk 0:02:54.8]} 14.
Bf4 {[%clk 0:03:05.5]} 14... Rb4 {[%clk 0:02:39.6]} 15. Bxd6 {[%clk 0:02:56.1]}
15... Qxd6 {[%clk 0:02:41.5]} 16. Rad1 {[%clk 0:02:56.8]} 16... c5 {[%clk
0:02:23.3]} 17. Bf1 {[%clk 0:02:32.9]} 17... Rbb8 {[%clk 0:01:34.5]} 18. Ne2
{[%clk 0:02:19.4]} 18... Bd7 {[%clk 0:00:36.5]} 19. Qf4 {[%clk 0:02:04.6]} 19...
Qa6 {[%clk 0:00:33.8]} 20. Nc3 {[%clk 0:01:50.5]} 20... Qa5 {[%clk 0:00:26.5]}
21. Qd2 {[%clk 0:01:51.2]} 21... d4 {[%clk 0:00:23.5]} 22. Ne4 {[%clk
0:01:49.1]} 22... Qxd2 {[%clk 0:00:20.7]} 23. Nxf6+ {[%clk 0:01:48.9]} 23...
gxf6 {[%clk 0:00:22.6]} 24. Rxd2 {[%clk 0:01:50.5]} 24... Rfe8 {[%clk
0:00:21.5]} 25. Rde2 {[%clk 0:01:25.9]} 25... Rxe2 {[%clk 0:00:21.8]} 26. Rxe2
{[%clk 0:01:27.1]} 26... Kf8 {[%clk 0:00:20.4]} 27. f3 {[%clk 0:01:25.8]} 27...
a5 {[%clk 0:00:21.4]} 28. Kf2 {[%clk 0:01:22.2]} 28... a4 {[%clk 0:00:16.9]} 29.
Re1 {[%clk 0:01:21.4]} 29... Bf5 {[%clk 0:00:13.7]} 30. Rc1 {[%clk 0:01:16]}
30... Ra8 {[%clk 0:00:14.8]} 31. Bd3 {[%clk 0:01:16]} 31... Bxd3 {[%clk
0:00:07.7]} 32. cxd3 {[%clk 0:01:17.2]} 32... axb3 {[%clk 0:00:09.3]} 33. axb3
{[%clk 0:01:19.1]} 33... Ra2+ {[%clk 0:00:10.7]} 34. Kg3 {[%clk 0:01:01.1]}
34... Rb2 {[%clk 0:00:12]} 35. Rxc5 {[%clk 0:00:51.5]} 35... Rxb3 {[%clk
0:00:13.3]} 36. Kf4 {[%clk 0:00:49]} 36... Rxd3 {[%clk 0:00:14.2]} 37. g4 {[%clk
0:00:49.8]} 37... Kg7 {[%clk 0:00:14.8]} 38. Rd5 {[%clk 0:00:48.1]} 38... Rd1
{[%clk 0:00:15.6]} 39. h4 {[%clk 0:00:47.9]} 39... h6 {[%clk 0:00:10]} 40. Ke4
{[%clk 0:00:46.4]} 40... Re1+ {[%clk 0:00:11.3]} 41. Kxd4 {[%clk 0:00:41.7]}
41... Re2 {[%clk 0:00:12.2]} 42. Kd3 {[%clk 0:00:41.2]} 42... Re1 {[%clk
0:00:13.3]} 43. Rc5 {[%clk 0:00:40.7]} 43... Rh1 {[%clk 0:00:11.7]} 44. h5
{[%clk 0:00:39.9]} 44... Re1 {[%clk 0:00:12.7]} 45. Kd2 {[%clk 0:00:40.6]} 45...
Re6 {[%clk 0:00:13.5]} 46. Rb5 {[%clk 0:00:39.7]} 46... Re7 {[%clk 0:00:14.1]}
47. Rb3 {[%clk 0:00:37.3]} 47... Re6 {[%clk 0:00:15.2]} 48. Re3 {[%clk
0:00:37.9]} 48... Ra6 {[%clk 0:00:16.8]} 49. Re4 {[%clk 0:00:33.9]} 49... Ra5
{[%clk 0:00:17.8]} 50. Rf4 {[%clk 0:00:27.7]} 50... Re5 {[%clk 0:00:18.6]} 51.
Kd3 {[%clk 0:00:28.4]} 51... Re6 {[%clk 0:00:18]} 52. Re4 {[%clk 0:00:29.2]}
52... Ra6 {[%clk 0:00:19.2]} 53. Ke3 {[%clk 0:00:30.5]} 53... Ra5 {[%clk
0:00:20]} 54. Kf4 {[%clk 0:00:31.6]} 54... Rb5 {[%clk 0:00:21.3]} 55. Rd4 {[%clk
0:00:32.7]} 55... Ra5 {[%clk 0:00:22.6]} 56. Ke4 {[%clk 0:00:31.9]} 56... Rb5
{[%clk 0:00:24]} 57. Rd5 {[%clk 0:00:31.4]} 57... Rb3 {[%clk 0:00:20.5]} 58. f4
{[%clk 0:00:30.4]} 58... Rg3 {[%clk 0:00:13.6]} 59. Kf5 {[%clk 0:00:27.3]} 59...
Ra3 {[%clk 0:00:14.3]} 60. Rb5 {[%clk 0:00:26.8]} 60... Rc3 {[%clk 0:00:13.3]}
61. Rb4 {[%clk 0:00:22.1]} 61... Rc5+ {[%clk 0:00:13.8]} 62. Ke4 {[%clk
0:00:23.4]} 62... Rc1 {[%clk 0:00:15.4]} 63. Ra4 {[%clk 0:00:21.8]} 63... Re1+
{[%clk 0:00:16.3]} 64. Kf5 {[%clk 0:00:22.4]} 64... Rc1 {[%clk 0:00:17.9]} 65.
Ra5 {[%clk 0:00:23]} 65... Rc2 {[%clk 0:00:19.3]} 66. Rd5 {[%clk 0:00:20.5]}
66... Rc1 {[%clk 0:00:20.2]} 67. Rd4 {[%clk 0:00:20.5]} 67... Rc5+ {[%clk
0:00:21.2]} 68. Ke4 {[%clk 0:00:21.7]} 68... Rc1 {[%clk 0:00:23.1]} 69. Kd5
{[%clk 0:00:21.4]} 69... Rg1 {[%clk 0:00:22.8]} 70. f5 {[%clk 0:00:22.7]} 70...
Re1 {[%clk 0:00:23.7]} 71. Kd6 {[%clk 0:00:23.5]} 71... Rg1 {[%clk 0:00:22.8]}
72. Kd7 {[%clk 0:00:24.4]} 72... Rg2 {[%clk 0:00:22.7]} 73. Ke8 {[%clk
0:00:24.3]} 73... Re2+ {[%clk 0:00:23.4]} 74. Kd8 {[%clk 0:00:25.1]} 74... Rg2
{[%clk 0:00:25.3]} 75. Rc4 {[%clk 0:00:25.6]} 75... Rd2+ {[%clk 0:00:25.6]} 76.
Ke7 {[%clk 0:00:25.8]} 76... Re2+ {[%clk 0:00:26.8]} 77. Kd6 {[%clk 0:00:26.3]}
77... Re1 {[%clk 0:00:28]} 78. Rd4 {[%clk 0:00:27.1]} 78... Re2 {[%clk
0:00:29.3]} 79. Kd7 {[%clk 0:00:28.2]} 79... Re1 {[%clk 0:00:30.7]} 80. Kd8
{[%clk 0:00:28.4]} 80... Re2 {[%clk 0:00:32]} 81. Rd7 {[%clk 0:00:21.5]} 81...
Kf8 {[%clk 0:00:20.8]} 82. Rd6 {[%clk 0:00:18]} 82... Kg7 {[%clk 0:00:15.5]} 83.
Rd4 {[%clk 0:00:18.9]} 83... Kf8 {[%clk 0:00:16]} 84. Kd7 {[%clk 0:00:18.4]}
84... Re3 {[%clk 0:00:16.3]} 85. Kd6 {[%clk 0:00:16.9]} 85... Re2 {[%clk
0:00:17.2]} 86. Kd5 {[%clk 0:00:18.1]} 86... Re3 {[%clk 0:00:18]} 87. Re4 {[%clk
0:00:18.7]} 87... Rd3+ {[%clk 0:00:19.1]} 88. Kc4 {[%clk 0:00:19.7]} 88... Rd1
{[%clk 0:00:19.7]} 89. Rd4 {[%clk 0:00:19.9]} 89... Re1 {[%clk 0:00:19.6]} 90.
Kd3 {[%clk 0:00:21]} 90... Re5 {[%clk 0:00:19.2]} 91. Rd6 {[%clk 0:00:18.4]}
91... Kg7 {[%clk 0:00:19.8]} 92. Rc6 {[%clk 0:00:18.3]} 92... Re1 {[%clk
0:00:20.4]} 93. Rc4 {[%clk 0:00:19.1]} 93... Re5 {[%clk 0:00:21.2]} 94. Re4
{[%clk 0:00:19.5]} 94... Ra5 {[%clk 0:00:22.4]} 95. Ke3 {[%clk 0:00:20.9]} 95...
Ra3+ {[%clk 0:00:23.2]} 96. Kf4 {[%clk 0:00:22.4]} 96... Ra1 {[%clk 0:00:23.8]}
97. Rd4 {[%clk 0:00:23.3]} 97... Re1 {[%clk 0:00:24.1]} 98. Kf3 {[%clk
0:00:24.3]} 98... Re5 {[%clk 0:00:24.8]} 99. Rd6 {[%clk 0:00:24.6]} 99... Re7
{[%clk 0:00:25.8]} 100. Kf4 {[%clk 0:00:25.3]} 100... Re8 {[%clk 0:00:26.9]}
101. Rd4 {[%clk 0:00:24.7]} 101... Re7 {[%clk 0:00:28.3]} 102. Re4 {[%clk
0:00:25.5]} 102... Ra7 {[%clk 0:00:29.2]} 103. Ke3 {[%clk 0:00:26.8]} 103...
Ra3+ {[%clk 0:00:30.3]} 104. Kd4 {[%clk 0:00:28.1]} 104... Ra4+ {[%clk
0:00:31.4]} 105. Kd5 {[%clk 0:00:29.5]} 105... Ra5+ {[%clk 0:00:32.8]} 106. Kc6
{[%clk 0:00:30.2]} 106... Ra6+ {[%clk 0:00:34.1]} 107. Kd7 {[%clk 0:00:31.1]}
107... Ra7+ {[%clk 0:00:35.2]} 108. Kc8 {[%clk 0:00:32.3]} 108... Ra8+ {[%clk
0:00:36.6]} 109. Kb7 {[%clk 0:00:33.1]} 109... Ra1 {[%clk 0:00:37.7]} 110. Rd4
{[%clk 0:00:34.3]} 110... Rc1 {[%clk 0:00:38.6]} 111. Kb6 {[%clk 0:00:35.1]}
111... Rc2 {[%clk 0:00:40]} 112. Kb5 {[%clk 0:00:36.1]} 112... Rb2+ {[%clk
0:00:41.4]} 113. Kc6 {[%clk 0:00:37]} 113... Re2 {[%clk 0:00:41.8]} 114. Kd7
{[%clk 0:00:37.9]} 114... Kf8 {[%clk 0:00:40.8]} 115. Kd6 {[%clk 0:00:36.2]}
115... Re3 {[%clk 0:00:40.5]} 116. Kc7 {[%clk 0:00:35.9]} 116... Rc3+ {[%clk
0:00:38.9]} 117. Kd6 {[%clk 0:00:35.1]} 117... Re3 {[%clk 0:00:40.5]} 118. Kd5
{[%clk 0:00:34.4]} 118... Re5+ {[%clk 0:00:41.3]} 119. Kc6 {[%clk 0:00:34.7]}
119... Re3 {[%clk 0:00:43.2]} 120. Rd8+ {[%clk 0:00:34.8]} 120... Kg7 {[%clk
0:00:43.9]} 121. Kc5 {[%clk 0:00:35.1]} 121... Rc3+ {[%clk 0:00:42.8]} 122. Kb5
{[%clk 0:00:34.2]} 122... Rb3+ {[%clk 0:00:43]} 123. Kc4 {[%clk 0:00:34.6]}
123... Rg3 {[%clk 0:00:43.7]} 124. Rd4 {[%clk 0:00:36]} 124... Re3 {[%clk
0:00:44.9]} 125. Kd5 {[%clk 0:00:37]} 125... Re5+ {[%clk 0:00:46]} 126. Kc6
{[%clk 0:00:37.7]} 126... Re3 {[%clk 0:00:45.5]} 127. Kd5 {[%clk 0:00:34.6]}
127... Re5+ {[%clk 0:00:46.5]} 128. Kd6 {[%clk 0:00:35.7]} 128... Re3 {[%clk
0:00:47.7]} 129. Kd7 {[%clk 0:00:36.7]} 129... Kf8 {[%clk 0:00:47.2]} 130. Kc7
{[%clk 0:00:35.3]} 130... Rc3+ {[%clk 0:00:47.6]} 131. Kd6 {[%clk 0:00:35.6]}
131... Re3 {[%clk 0:00:49.5]} 132. Kc6 {[%clk 0:00:31.8]} 132... Rc3+ {[%clk
0:00:50.1]} 133. Kd5 {[%clk 0:00:32.9]} 133... Re3 {[%clk 0:00:52]} 134. Re4
{[%clk 0:00:32.8]} 134... Rd3+ {[%clk 0:00:52.2]} 135. Kc4 {[%clk 0:00:34]}
135... Rd1 {[%clk 0:00:52.2]} 136. Re3 {[%clk 0:00:32.7]} 136... Kg7 {[%clk
0:00:52.3]} 137. Rg3 {[%clk 0:00:32.2]} 137... Rd2 {[%clk 0:00:52.7]} 138. Kc5
{[%clk 0:00:33.3]} 138... Rd1 {[%clk 0:00:53.8]} 139. Kc6 {[%clk 0:00:34.7]}
1/2-1/2

[Event "*** Titled Tuesday Blitz"]
[Site "Chess.com"]
[Date "2018.01.02"]
[Round "3"]
[White "Mikhail_Golubev"]
[Black "jup1978"]
[Result "1-0"]
[WhiteElo "2135"]
[BlackElo "2191"]
[TimeControl "180+2"]
[EndTime "13:31:41 PST"]
[Termination "Mikhail_Golubev won by resignation"]

1. e4 {[%clk 0:03:01.9]} 1... e5 {[%clk 0:03:00.3]} 2. Nf3 {[%clk 0:03:01.4]}
2... Nc6 {[%clk 0:03:01.3]} 3. Bc4 {[%clk 0:03:01.4]} 3... Bc5 {[%clk
0:03:02.7]} 4. b4 {[%clk 0:03:01.5]} 4... Bxb4 {[%clk 0:03:00.4]} 5. c3 {[%clk
0:03:02.2]} 5... Ba5 {[%clk 0:03:01.8]} 6. d4 {[%clk 0:03:02.2]} 6... d6 {[%clk
0:02:56.9]} 7. O-O {[%clk 0:02:54.6]} 7... Bb6 {[%clk 0:02:53.1]} 8. dxe5 {[%clk
0:02:46.3]} 8... dxe5 {[%clk 0:02:46.6]} 9. Qb3 {[%clk 0:02:44.8]} 9... Qe7
{[%clk 0:02:40.2]} 10. Ba3 {[%clk 0:02:42.3]} 10... Bc5 {[%clk 0:02:40]} 11.
Bxc5 {[%clk 0:02:39.6]} 11... Qxc5 {[%clk 0:02:40.6]} 12. Bxf7+ {[%clk
0:02:38.1]} 12... Kf8 {[%clk 0:02:41.8]} 13. Bxg8 {[%clk 0:02:34.8]} 13... Rxg8
{[%clk 0:02:39.9]} 14. Ng5 {[%clk 0:02:34]} 14... Qe7 {[%clk 0:02:37.5]} 15.
Nxh7+ {[%clk 0:02:34.2]} 15... Ke8 {[%clk 0:02:38.7]} 16. Qxg8+ {[%clk
0:02:32.7]} 1-0

[Event "*** Titled Tuesday Blitz"]
[Site "Chess.com"]
[Date "2018.01.02"]
[Round "3"]
[White "windking123"]
[Black "Markov_Mikhail"]
[Result "1-0"]
[WhiteElo "2427"]
[BlackElo "2540"]
[TimeControl "180+2"]
[EndTime "13:33:47 PST"]
[Termination "windking123 won by resignation"]

1. Nf3 {[%clk 0:03:00.1]} 1... Nf6 {[%clk 0:03:00.9]} 2. c4 {[%clk 0:03:01.4]}
2... e6 {[%clk 0:03:02.3]} 3. g3 {[%clk 0:03:02.2]} 3... d5 {[%clk 0:03:03.9]}
4. d4 {[%clk 0:03:00.3]} 4... Be7 {[%clk 0:03:04.6]} 5. Bg2 {[%clk 0:03:01.1]}
5... O-O {[%clk 0:03:05.8]} 6. Nbd2 {[%clk 0:03:02.1]} 6... Nbd7 {[%clk
0:03:07.4]} 7. O-O {[%clk 0:03:03.2]} 7... c5 {[%clk 0:03:06.2]} 8. e3 {[%clk
0:02:58.5]} 8... b6 {[%clk 0:03:07]} 9. cxd5 {[%clk 0:02:58.4]} 9... exd5 {[%clk
0:03:07.6]} 10. b3 {[%clk 0:02:54.6]} 10... Bb7 {[%clk 0:03:08.8]} 11. Bb2
{[%clk 0:02:55.3]} 11... Rc8 {[%clk 0:03:10.3]} 12. Rc1 {[%clk 0:02:56]} 12...
Re8 {[%clk 0:03:10.4]} 13. Qe2 {[%clk 0:02:56.2]} 13... Qc7 {[%clk 0:03:10.4]}
14. Rfd1 {[%clk 0:02:56.6]} 14... Qb8 {[%clk 0:03:11.5]} 15. Ne5 {[%clk
0:02:43.7]} 15... Nxe5 {[%clk 0:03:02.2]} 16. dxe5 {[%clk 0:02:45.6]} 16... Ne4
{[%clk 0:03:03.8]} 17. Nxe4 {[%clk 0:02:34.7]} 17... dxe4 {[%clk 0:03:05.7]} 18.
Qc4 {[%clk 0:02:33.8]} 18... Qa8 {[%clk 0:02:51.5]} 19. e6 {[%clk 0:02:26.5]}
19... f6 {[%clk 0:02:47.7]} 20. Rd7 {[%clk 0:02:08.5]} 20... Bc6 {[%clk
0:02:46.2]} 21. Rcd1 {[%clk 0:02:09.7]} 21... Kf8 {[%clk 0:02:47.3]} 22. Qe2
{[%clk 0:01:57.6]} 22... Kg8 {[%clk 0:02:04.3]} 23. Qh5 {[%clk 0:01:55.9]} 23...
g6 {[%clk 0:02:05.5]} 24. Qh6 {[%clk 0:01:53.5]} 24... Rcd8 {[%clk 0:02:02.8]}
25. Bxf6 {[%clk 0:01:48.7]} 1-0

[Event "*** Titled Tuesday Blitz"]
[Site "Chess.com"]
[Date "2018.01.02"]
[Round "3"]
[White "Frolik67"]
[Black "eldur16"]
[Result "0-1"]
[WhiteElo "2448"]
[BlackElo "2493"]
[TimeControl "180+2"]
[EndTime "13:33:53 PST"]
[Termination "eldur16 won by resignation"]

1. e4 {[%clk 0:03:01.9]} 1... g6 {[%clk 0:03:00.1]} 2. d4 {[%clk 0:03:01.3]}
2... Bg7 {[%clk 0:03:00.7]} 3. Nf3 {[%clk 0:02:56.8]} 3... d6 {[%clk 0:03:01.6]}
4. c4 {[%clk 0:02:56.9]} 4... Nf6 {[%clk 0:03:00.6]} 5. Nc3 {[%clk 0:02:57.6]}
5... O-O {[%clk 0:03:01.5]} 6. Be2 {[%clk 0:02:55.6]} 6... e5 {[%clk 0:03:02.3]}
7. O-O {[%clk 0:02:54.6]} 7... Nc6 {[%clk 0:03:03.2]} 8. dxe5 {[%clk 0:02:52.4]}
8... dxe5 {[%clk 0:03:01.8]} 9. Qc2 {[%clk 0:02:51.4]} 9... Nd4 {[%clk
0:02:57.6]} 10. Nxd4 {[%clk 0:02:51]} 10... exd4 {[%clk 0:02:58.6]} 11. Rd1
{[%clk 0:02:51.9]} 11... c5 {[%clk 0:02:58.4]} 12. Nd5 {[%clk 0:02:48.9]} 12...
Nxd5 {[%clk 0:02:49.4]} 13. cxd5 {[%clk 0:02:49.9]} 13... b6 {[%clk 0:02:50.2]}
14. Bf4 {[%clk 0:02:46.6]} 14... Kh8 {[%clk 0:02:40.3]} 15. Bf3 {[%clk
0:02:38.7]} 15... Bb7 {[%clk 0:02:37.3]} 16. Rac1 {[%clk 0:02:36.3]} 16... f5
{[%clk 0:02:36.7]} 17. b4 {[%clk 0:02:29.2]} 17... Rc8 {[%clk 0:01:53.9]} 18.
bxc5 {[%clk 0:02:08.9]} 18... Rxc5 {[%clk 0:01:52.6]} 19. Qe2 {[%clk 0:02:01]}
19... fxe4 {[%clk 0:01:50.6]} 20. Qxe4 {[%clk 0:01:33.5]} 20... Bxd5 {[%clk
0:01:50.9]} 0-1

[Event "*** Titled Tuesday Blitz"]
[Site "Chess.com"]
[Date "2018.01.02"]
[Round "3"]
[White "Th3ChessViking"]
[Black "luisgui16"]
[Result "0-1"]
[WhiteElo "2399"]
[BlackElo "2259"]
[TimeControl "180+2"]
[EndTime "13:34:05 PST"]
[Termination "luisgui16 won on time"]

1. c4 {[%clk 0:03:01.7]} 1... Nf6 {[%clk 0:02:58.5]} 2. g3 {[%clk 0:03:00.9]}
2... g6 {[%clk 0:02:59.5]} 3. Bg2 {[%clk 0:02:57.7]} 3... Bg7 {[%clk 0:03:00.3]}
4. Nf3 {[%clk 0:02:59.6]} 4... O-O {[%clk 0:03:01.1]} 5. O-O {[%clk 0:03:01.3]}
5... d6 {[%clk 0:03:02.4]} 6. Nc3 {[%clk 0:02:59.2]} 6... Nbd7 {[%clk
0:03:00.9]} 7. d3 {[%clk 0:02:57.2]} 7... c6 {[%clk 0:02:50]} 8. Rb1 {[%clk
0:02:52.5]} 8... Nh5 {[%clk 0:02:50.9]} 9. Bd2 {[%clk 0:02:50.1]} 9... f5 {[%clk
0:02:50.3]} 10. b4 {[%clk 0:02:47.3]} 10... Ne5 {[%clk 0:02:32.4]} 11. a4 {[%clk
0:02:36.4]} 11... f4 {[%clk 0:02:30.4]} 0-1

[Event "*** Titled Tuesday Blitz"]
[Site "Chess.com"]
[Date "2018.01.02"]
[Round "3"]
[White "StellarChessPro"]
[Black "TrickyTrapChess"]
[Result "0-1"]
[WhiteElo "2381"]
[BlackElo "2252"]
[TimeControl "180+2"]
[EndTime "13:34:12 PST"]
[Termination "TrickyTrapChess won by checkmate"]

1. d4 {[%clk 0:02:23.7]} 1... Nf6 {[%clk 0:02:58]} 2. Bg5 {[%clk 0:02:13.3]}
2... d5 {[%clk 0:02:56.3]} 3. Bxf6 {[%clk 0:02:13.9]} 3... gxf6 {[%clk
0:02:57.8]} 4. e3 {[%clk 0:02:15.8]} 4... e5 {[%clk 0:02:58.3]} 5. c4 {[%clk
0:02:15.2]} 5... c6 {[%clk 0:02:57.3]} 6. cxd5 {[%clk 0:02:15.3]} 6... cxd5
{[%clk 0:02:58.1]} 7. Nc3 {[%clk 0:02:16.8]} 7... Bb4 {[%clk 0:02:56.8]} 8. Bb5+
{[%clk 0:02:15.7]} 8... Nc6 {[%clk 0:02:54.9]} 9. Qa4 {[%clk 0:02:15.2]} 9...
Bxc3+ {[%clk 0:02:53.3]} 10. bxc3 {[%clk 0:02:15.4]} 10... Bd7 {[%clk
0:02:52.7]} 11. Ne2 {[%clk 0:02:13.5]} 11... a6 {[%clk 0:02:47.5]} 12. Bxc6
{[%clk 0:02:13.7]} 12... Bxc6 {[%clk 0:02:47.5]} 13. Qb4 {[%clk 0:02:15.5]}
13... Rg8 {[%clk 0:02:44.2]} 14. Ng3 {[%clk 0:02:14.7]} 14... Qd7 {[%clk
0:02:26.7]} 15. O-O {[%clk 0:02:02.1]} 15... e4 {[%clk 0:01:58.4]} 16. c4 {[%clk
0:02:00.9]} 16... a5 {[%clk 0:01:52.9]} 17. Qb3 {[%clk 0:01:54.1]} 17... Qg4
{[%clk 0:01:47.3]} 18. cxd5 {[%clk 0:01:52.2]} 18... Bd7 {[%clk 0:01:36.5]} 19.
Qxb7 {[%clk 0:01:50.5]} 19... Rd8 {[%clk 0:01:34]} 20. d6 {[%clk 0:01:49.4]}
20... f5 {[%clk 0:01:32]} 21. f3 {[%clk 0:01:48.2]} 21... Qg5 {[%clk 0:01:31.9]}
22. fxe4 {[%clk 0:01:48.7]} 22... Qxe3+ {[%clk 0:01:31.8]} 23. Kh1 {[%clk
0:01:49.8]} 23... f4 {[%clk 0:01:31.9]} 24. Nf5 {[%clk 0:01:50.2]} 24... Qe2
{[%clk 0:01:28.2]} 25. Rae1 {[%clk 0:01:46.2]} 25... Qxg2# {[%clk 0:01:28.6]}
0-1